bitfinex-derivatives/quotes_BTCF0:USTF0_20241203
["timestamp","ask_amount","ask_price","bid_price","bid_amount"]
[1733211363084,0.4019,95578.0,95577.0,0.001]
[1733211363987,0.4216706,95578.0,95577.0,0.001]
[1733211366688,0.052318,95554.0,95552.0,0.0331]
[1733211366893,0.413118,95553.0,95548.0,0.13812]
[1733211367281,0.413118,95553.0,95551.0,0.00156969]
[1733211367887,0.052321,95549.0,95539.0,0.0328]
[1733211368090,0.3608,95540.0,95539.0,0.085126]
[1733211368499,0.3608,95540.0,95539.0,0.0328]
[1733211368790,0.3608,95540.0,95538.0,8.972e-05]
[1733211369782,0.3618,95540.0,95539.0,0.012]
[1733211369988,0.3628,95540.0,95539.0,0.012]
[1733211370487,0.3618,95540.0,95539.0,0.006]
[1733211370687,0.3628,95540.0,95539.0,0.006]
[1733211371089,0.3628,95540.0,95539.0,0.15012]
[1733211372195,0.3628,95540.0,95539.0,0.14412]
[1733211372997,0.3628,95540.0,95539.0,0.15012]
[1733211373996,0.3628,95540.0,95539.0,0.15016]
[1733211374700,0.002,95540.0,95539.0,0.15016]
[1733211376298,0.002,95540.0,95539.0,0.16997205]
[1733211376500,0.002,95540.0,95539.0,0.012]
[1733211376698,0.002,95540.0,95539.0,0.15016]
[1733211377605,0.002,95540.0,95539.0,0.012]
[1733211385117,0.002,95540.0,95539.0,0.3728]
[1733211386613,0.002,95540.0,95539.0,0.012]
[1733211393130,0.002,95540.0,95539.0,0.15012]
[1733211394728,0.002,95540.0,95539.0,0.012]
[1733211397022,0.002,95540.0,95539.0,0.064326]
[1733211404723,0.002,95540.0,95539.0,0.058326]
[1733211404724,0.001,95540.0,95539.0,0.058326]
[1733211404923,0.002,95540.0,95539.0,0.064326]
[1733211406029,0.001,95540.0,95539.0,0.426126]
[1733211406221,0.002,95540.0,95539.0,0.426126]
[1733211406531,0.001,95540.0,95539.0,0.429126]
[1733211406930,0.052319,95552.0,95550.0,0.05232]
[1733211407132,0.3608,95551.0,95550.0,0.13812]
[1733211407429,0.3608,95551.0,95539.0,0.3758]
[1733211407625,0.12580877,95550.0,95540.0,0.13812]
[1733211407826,0.12580877,95550.0,95546.0,0.052322]
[1733211408127,0.052321,95549.0,95546.0,0.190442]
[1733211409038,0.052321,95549.0,95547.0,0.052321]
[1733211409039,0.07220751,95549.0,95547.0,0.052321]
[1733211409729,0.3608,95548.0,95547.0,0.052321]
[1733211410328,0.3608,95548.0,95547.0,0.059321]
[1733211410737,0.3608,95548.0,95547.0,0.052321]
[1733211410937,0.3608,95548.0,95547.0,0.058321]
[1733211411231,0.3608,95548.0,95547.0,0.062321]
[1733211411427,0.3608,95548.0,95547.0,0.063321]
[1733211412136,0.48764878,95560.0,95547.0,0.011]
[1733211412137,0.36184001,95560.0,95547.0,0.011]
[1733211412433,0.3608,95560.0,95558.0,0.052316]
[1733211413728,0.3608,95560.0,95558.0,0.059316]
[1733211413924,0.3608,95560.0,95558.0,0.064316]
[1733211414323,0.3608,95560.0,95558.0,0.062316]
[1733211414534,0.3608,95560.0,95558.0,0.057316]
[1733211414731,0.3608,95560.0,95558.0,0.062316]
[1733211415939,0.3608,95560.0,95558.0,0.066316]
[1733211416845,0.3608,95560.0,95558.0,0.061316]
[1733211417032,0.3608,95560.0,95558.0,0.068316]
[1733211417736,0.3608,95560.0,95558.0,0.059316]
[1733211417934,0.3608,95560.0,95558.0,0.068316]
[1733211418439,0.3608,95560.0,95559.0,0.052315]
[1733211420042,0.3608,95560.0,95559.0,0.061315]
[1733211420236,0.3608,95560.0,95559.0,0.009]
[1733211420540,0.3608,95560.0,95559.0,0.007]
[1733211420729,0.3608,95560.0,95559.0,0.016]
[1733211422135,0.3608,95560.0,95559.0,0.0396]
[1733211422440,0.3608,95560.0,95559.0,0.0486]
[1733211422946,0.3608,95570.0,95569.0,0.05231]
[1733211423246,0.3608,95570.0,95569.0,0.19039]
[1733211424135,0.3608,95570.0,95569.0,0.19939]
[1733211424650,0.3608,95570.0,95569.0,0.009]
[1733211425140,0.3608,95570.0,95569.0,0.018]
[1733211426240,0.3608,95573.0,95569.0,0.018]
[1733211426440,0.3608,95573.0,95569.0,0.009]
[1733211426637,0.3608,95573.0,95569.0,0.018]
[1733211426838,0.3608,95573.0,95569.0,0.009]
[1733211427037,0.3608,95573.0,95569.0,0.018]
[1733211427345,0.3608,95573.0,95571.0,0.052308]
[1733211429341,0.3608,95573.0,95569.0,0.018]
[1733211429342,0.3608,95573.0,95569.0,0.009]
[1733211429538,0.3608,95573.0,95571.0,0.009]
[1733211429748,0.3608,95573.0,95571.0,0.018]
[1733211429944,0.3608,95573.0,95571.0,0.009]
[1733211430150,0.3608,95573.0,95571.0,0.070308]
[1733211430453,0.3608,95573.0,95571.0,0.061308]
[1733211430637,0.36192001,95585.0,95571.0,0.009]
[1733211430845,0.3608,95585.0,95575.0,0.12580877]
[1733211431042,0.3608,95585.0,95579.0,0.052304]
[1733211431246,0.3608,95585.0,95580.0,0.17064]
[1733211432242,0.0333,95592.0,95586.0,0.0523]
[1733211432642,0.0333,95592.0,95580.0,0.17064]
[1733211432842,0.052302,95584.0,95581.0,0.13804]
[1733211433251,0.052299,95590.0,95586.0,0.009]
[1733211433750,0.052299,95590.0,95581.0,0.13804]
[1733211433948,0.0333,95592.0,95582.0,0.13804]
[1733211434148,0.0333,95592.0,95586.0,0.0523]
[1733211434555,0.38163914,95594.0,95586.0,0.009]
[1733211434756,0.3608,95594.0,95586.0,0.009]
[1733211435047,0.3608,95594.0,95591.0,0.052298]
[1733211435253,0.3608,95594.0,95586.0,0.009]
[1733211435449,0.0523,95588.0,95586.0,0.009]
[1733211436052,0.38208215,95594.0,95582.0,0.018]
[1733211436246,0.3608,95584.0,95582.0,0.018]
[1733211436656,0.12580877,95592.0,95586.0,0.017]
[1733211436859,0.0523,95588.0,95586.0,0.017]
[1733211437057,0.12580877,95592.0,95586.0,0.017]
[1733211437250,0.38212215,95594.0,95586.0,0.0603]
[1733211437446,0.38104214,95594.0,95582.0,0.017]
[1733211437650,0.12580877,95592.0,95582.0,0.017]
[1733211437954,0.0523,95588.0,95582.0,0.069303]
[1733211438152,0.12580877,95592.0,95582.0,0.069303]
[1733211438354,0.0523,95587.0,95582.0,0.069303]
[1733211438559,0.0523,95587.0,95583.0,0.052302]
[1733211439042,0.0523,95587.0,95586.0,0.017]
[1733211439457,0.0523,95587.0,95586.0,0.008]
[1733211439645,0.12580877,95592.0,95582.0,0.009]
[1733211439850,0.413102,95583.0,95582.0,0.009]
[1733211440051,0.413102,95583.0,95581.0,0.052303]
[1733211440663,0.413102,95583.0,95582.0,0.009]
[1733211441050,0.413102,95583.0,95570.0,0.0707]
[1733211441051,0.413102,95583.0,95570.0,0.0399]
[1733211441262,0.413109,95571.0,95570.0,0.0399]
[1733211442765,0.43286883,95571.0,95570.0,0.0399]
[1733211443153,0.43286883,95571.0,95570.0,0.0489]
[1733211443359,0.43286883,95571.0,95570.0,0.0579]
[1733211443855,0.43286883,95571.0,95570.0,0.0439]
[1733211444055,0.43286883,95571.0,95570.0,0.0529]
[1733211444257,0.38055983,95571.0,95548.0,0.13796]
[1733211444558,0.38055983,95571.0,95545.0,0.0319]
[1733211444559,0.3608,95551.0,95547.0,0.052322]
[1733211444966,0.3608,95551.0,95548.0,0.052321]
[1733211445258,0.3608,95551.0,95545.0,0.16986]
[1733211445464,0.052321,95549.0,95545.0,0.16986]
[1733211445656,0.3608,95551.0,95543.0,0.00156986]
[1733211446160,0.05232,95550.0,95548.0,0.009]
[1733211446849,0.3608,95551.0,95543.0,0.00156986]
[1733211447162,0.052322,95547.0,95543.0,0.01956986]
[1733211447365,0.3618,95551.0,95543.0,0.01956986]
[1733211447558,0.001,95550.0,95548.0,0.009]
[1733211447758,0.05332,95550.0,95548.0,0.009]
[1733211448469,0.05332,95550.0,95548.0,0.016]
[1733211449064,0.05232,95550.0,95548.0,0.007]
[1733211449760,0.05332,95550.0,95548.0,0.016]
[1733211449962,0.15765964,95549.0,95548.0,0.016]
[1733211450361,0.052321,95548.0,95528.0,0.0327]
[1733211450558,0.413126,95539.0,95528.0,0.0327]
[1733211450758,0.052337,95519.0,95518.0,0.00157026]
[1733211450965,0.052337,95519.0,95511.0,0.1589464]
[1733211450966,0.052341,95513.0,95511.0,0.1589464]
[1733211451165,0.052341,95513.0,95511.0,0.0209464]
[1733211451465,0.052346,95504.0,95502.0,0.0308]
[1733211451770,0.36087636,95503.0,95502.0,0.0308]
[1733211451963,0.052347,95502.0,95500.0,0.1]
[1733211452164,0.052355,95488.0,95484.0,0.0303]
[1733211452471,0.36087636,95503.0,95481.0,0.0305]
[1733211452472,0.052357,95484.0,95481.0,0.0305]
[1733211452654,0.052358,95482.0,95467.0,0.1578423]
[1733211452856,0.052358,95482.0,95470.0,0.138]
[1733211453361,0.3608,95485.0,95470.0,0.138]
[1733211453576,0.001,95488.0,95484.0,0.007]
[1733211454068,0.001,95482.0,95475.0,0.02095013]
[1733211454261,0.001,95482.0,95470.0,0.190364]
[1733211454463,0.001,95482.0,95467.0,0.0305]
[1733211454663,0.12580877,95487.0,95467.0,0.0305]
[1733211454664,0.052359,95479.0,95467.0,0.0305]
[1733211454867,0.3608,95481.0,95477.0,0.00911452]
[1733211455460,0.3608,95481.0,95477.0,0.00011452]
[1733211455657,0.3608,95481.0,95477.0,0.00811452]
[1733211456265,0.3608,95481.0,95477.0,0.00711452]
[1733211456466,0.3618,95481.0,95477.0,0.01511452]
[1733211456666,0.3618,95481.0,95477.0,0.00811452]
[1733211456862,0.3628,95481.0,95477.0,0.01511452]
[1733211457068,0.002,95481.0,95480.0,0.3608]
[1733211457367,0.3608,95499.0,95480.0,0.3608]
[1733211457672,0.3608,95499.0,95480.0,0.48660877]
[1733211458070,0.3608,95499.0,95490.0,0.052353]
[1733211458268,0.3608,95499.0,95480.0,0.48660877]
[1733211458269,0.3608,95499.0,95495.0,0.05235]
[1733211458472,7.636e-05,95503.0,95496.0,0.14392]
[1733211458770,7.636e-05,95503.0,95501.0,0.052347]
[1733211459465,7.636e-05,95503.0,95502.0,0.14392]
[1733211459868,0.00107636,95503.0,95502.0,0.14392]
[1733211460065,0.0026,95522.0,95508.0,0.052343]
[1733211460267,0.413133,95527.0,95502.0,0.14392]
[1733211460268,0.41421301,95527.0,95512.0,0.3608]
[1733211460474,0.3608,95527.0,95512.0,0.3608]
[1733211460671,0.3608,95527.0,95522.0,0.052335]
[1733211460970,0.3608,95527.0,95523.0,0.14392]
[1733211461275,5.291e-05,95526.0,95523.0,0.14392]
[1733211462780,5.291e-05,95526.0,95523.0,0.14892]
[1733211462969,0.00105291,95526.0,95523.0,0.15792]
[1733211464874,0.052334,95525.0,95523.0,0.018]
[1733211465878,0.052334,95525.0,95523.0,0.014]
[1733211466077,0.052334,95525.0,95523.0,0.005]
[1733211466376,0.052334,95525.0,95523.0,0.014]
[1733211466879,0.053334,95525.0,95523.0,0.014]
[1733211469979,0.033,95524.0,95523.0,0.014]
[1733211472378,0.034,95524.0,95523.0,0.014]
[1733211473182,0.001,95524.0,95523.0,0.015]
[1733211473480,0.002,95524.0,95523.0,0.015]
[1733211475585,0.002,95524.0,95523.0,0.014]
[1733211475586,0.001,95524.0,95523.0,0.014]
[1733211476887,0.48799585,95524.0,95490.0,0.052353]
[1733211477096,0.48799585,95524.0,95491.0,0.0306]
[1733211477097,0.3608,95492.0,95491.0,0.0306]
[1733211477380,0.3608,95492.0,95486.0,0.0209529]
[1733211477381,0.413152,95492.0,95486.0,0.0209529]
[1733211478480,0.413152,95492.0,95491.0,0.009]
[1733211479183,0.413152,95492.0,95486.0,0.17796]
[1733211479380,0.414152,95492.0,95491.0,0.007]
[1733211480087,0.414152,95492.0,95491.0,0.014]
[1733211480288,0.415152,95492.0,95491.0,0.013]
[1733211481681,0.415152,95492.0,95491.0,0.012]
[1733211482288,0.3628,95492.0,95491.0,0.012]
[1733211482785,0.3628,95492.0,95491.0,0.013]
[1733211482990,0.3628,95492.0,95491.0,0.065353]
[1733211483184,0.002,95492.0,95491.0,0.426153]
[1733211483384,0.3608,95503.0,95491.0,0.3738]
[1733211483592,0.3608,95503.0,95500.0,0.052347]
[1733211483786,0.3608,95503.0,95491.0,0.013]
[1733211483998,0.052352,95492.0,95491.0,0.013]
[1733211484494,0.053352,95492.0,95491.0,0.006]
[1733211485785,0.052353,95491.0,95485.0,0.1989129]
[1733211486194,0.3608,95490.0,95485.0,0.1989129]
[1733211486492,0.052353,95491.0,95486.0,0.0318]
[1733211487493,0.001,95490.0,95486.0,0.0318]
[1733211487991,0.002,95490.0,95486.0,0.0318]
[1733211489077,0.001,95490.0,95486.0,0.0378]
[1733211489379,0.001,95490.0,95486.0,0.0448]
[1733211489579,0.001,95490.0,95489.0,0.052354]
[1733211489883,0.002,95490.0,95489.0,0.052354]
[1733211490587,0.3608,95501.0,95487.0,0.01938642]
[1733211490787,0.001,95490.0,95489.0,0.063354]
[1733211492101,0.3608,95509.0,95489.0,0.011]
[1733211492295,0.3608,95509.0,95501.0,0.3608]
[1733211492591,0.3608,95509.0,95502.0,0.0305]
[1733211492885,0.3608,95509.0,95502.0,0.0635]
[1733211493395,0.3628,95509.0,95502.0,0.0635]
[1733211494092,0.3628,95509.0,95502.0,0.0705]
[1733211494685,0.3628,95509.0,95502.0,0.122846]
[1733211494882,0.3628,95509.0,95506.0,0.052344]
[1733211495184,0.3628,95509.0,95507.0,0.260803]
[1733211495386,0.002,95509.0,95507.0,0.260803]
[1733211495592,0.001,95509.0,95507.0,0.260803]
[1733211495790,0.002,95509.0,95507.0,0.260803]
[1733211496490,0.001,95509.0,95507.0,0.260803]
[1733211496793,0.002,95509.0,95507.0,0.269803]
[1733211497192,0.001,95509.0,95507.0,0.260803]
[1733211497393,0.001,95509.0,95507.0,0.20846]
[1733211497889,0.001,95509.0,95507.0,0.260804]
[1733211498092,0.001,95509.0,95507.0,0.20846]
[1733211498297,0.3608,95520.0,95507.0,0.20846]
[1733211498494,0.3608,95520.0,95507.0,0.21346]
[1733211498692,0.052341,95513.0,95507.0,0.21346]
[1733211498887,0.48772878,95520.0,95507.0,0.21346]
[1733211499090,0.052341,95512.0,95507.0,0.20846]
[1733211499294,0.001,95509.0,95507.0,0.22146]
[1733211499788,0.052343,95509.0,95507.0,0.013]
[1733211499994,0.0333,95508.0,95507.0,0.013]
[1733211500204,0.0333,95508.0,95489.0,0.17796]
[1733211500205,0.052353,95491.0,95489.0,0.17796]
[1733211501097,0.3608,95495.0,95482.0,0.01975244]
[1733211501098,0.052354,95488.0,95482.0,0.01975244]
[1733211501696,0.052354,95488.0,95481.0,0.3608]
[1733211502205,0.052354,95488.0,95484.0,0.02095377]
[1733211502394,0.052354,95488.0,95484.0,0.19891377]
[1733211502596,0.053354,95488.0,95487.0,0.01057077]
[1733211503195,0.054354,95488.0,95487.0,0.01157077]
[1733211506395,0.054354,95488.0,95487.0,0.18953077]
[1733211506906,0.054354,95488.0,95487.0,0.01157077]
[1733211507919,0.053354,95488.0,95487.0,0.00257077]
[1733211508214,0.054354,95488.0,95487.0,0.00957077]
[1733211508820,0.054354,95488.0,95487.0,0.00857077]
[1733211511510,0.053354,95488.0,95487.0,0.00857077]
[1733211511709,0.054354,95488.0,95487.0,0.00857077]
[1733211517224,0.05440691,95488.0,95487.0,7.7e-07]
[1733211518221,0.05340691,95488.0,95487.0,7.7e-07]
[1733211518528,0.05236,95478.0,95467.0,0.3608]
[1733211519326,0.05236,95478.0,95459.0,0.44229123]
[1733211519531,0.05236,95478.0,95465.0,0.17184]
[1733211519829,0.07342096,95478.0,95477.0,0.00111452]
[1733211520915,0.07442096,95478.0,95477.0,0.00111452]
[1733211525427,0.05436,95478.0,95477.0,0.00111452]
[1733211528830,0.052373,95453.0,95437.0,0.3608]
[1733211529032,0.05236,95477.0,95446.0,0.02023909]
[1733211529033,0.052375,95452.0,95446.0,0.02023909]
[1733211529234,0.052375,95452.0,95439.0,0.16576]
[1733211529534,0.3608,95456.0,95439.0,0.16576]
[1733211529535,0.052376,95449.0,95439.0,0.16576]
[1733211529732,0.12580877,95450.0,95437.0,0.3608]
[1733211529933,0.3608,95446.0,95436.0,0.0312]
[1733211530239,0.052382,95438.0,95436.0,0.0312]
[1733211531835,0.053382,95438.0,95436.0,0.0312]
[1733211532025,0.054382,95438.0,95436.0,0.0312]
[1733211533028,0.002,95438.0,95436.0,0.0312]
[1733211534038,0.002,95438.0,95437.0,0.3608]
[1733211534231,0.052384,95433.0,95432.0,0.00010683]
[1733211534936,0.052384,95433.0,95432.0,0.16586683]
[1733211535537,0.053384,95433.0,95432.0,0.16586683]
[1733211536333,0.053384,95433.0,95432.0,8.3e-07]
[1733211536534,0.053384,95433.0,95408.0,0.00157208]
[1733211536535,0.052398,95409.0,95408.0,0.00157208]
[1733211537038,0.052398,95409.0,95408.0,0.16737208]
[1733211537236,0.052398,95409.0,95408.0,0.00157208]
[1733211537541,0.052398,95409.0,95408.0,0.16737208]
[1733211537734,0.002,95409.0,95408.0,0.00157208]
[1733211537934,0.002,95409.0,95408.0,0.16737208]
[1733211539243,0.001,95409.0,95408.0,0.16737208]
[1733211539541,0.002,95409.0,95408.0,0.16737208]
[1733211540040,0.002,95409.0,95400.0,1.10056]
[1733211540041,0.00209193,95409.0,95400.0,1.10056]
[1733211540245,0.00209193,95409.0,95400.0,1.1]
[1733211540246,0.052401,95404.0,95400.0,1.1]
[1733211540540,0.05448993,95409.0,95400.0,1.1]
[1733211541244,0.00209193,95409.0,95400.0,1.1]
[1733211541436,0.00209193,95409.0,95400.0,1.2658]
[1733211541841,0.00109193,95409.0,95402.0,0.052401]
[1733211542042,0.00209193,95409.0,95406.0,0.3608]
[1733211542442,0.00109193,95409.0,95406.0,0.3608]
[1733211542747,0.00109193,95409.0,95407.0,0.16584]
[1733211542748,0.00209193,95409.0,95407.0,0.16584]
[1733211543840,0.00209193,95409.0,95408.0,0.16584]
[1733211544251,0.00109193,95409.0,95408.0,0.16584]
[1733211544637,0.00109193,95409.0,95405.0,0.3608]
[1733211544840,0.00109193,95409.0,95406.0,0.16584]
[1733211545044,0.00109193,95409.0,95405.0,0.3608]
[1733211545243,0.00109193,95409.0,95406.0,0.16584]
[1733211545439,0.00109193,95409.0,95400.0,1.10064]
[1733211545639,0.00109193,95409.0,95400.0,1.1]
[1733211545941,9.193e-05,95409.0,95400.0,1.1]
[1733211546141,0.00109193,95409.0,95400.0,1.1]
[1733211546843,0.00109193,95409.0,95401.0,0.16584]
[1733211547245,0.00209193,95409.0,95401.0,0.16584]
[1733211547744,0.00209193,95409.0,95406.0,0.052399]
[1733211547946,0.052398,95408.0,95400.0,1.1006]
[1733211548147,0.00209193,95409.0,95400.0,1.1]
[1733211548650,0.00209193,95409.0,95401.0,0.052402]
[1733211548843,0.00209193,95409.0,95402.0,0.052401]
[1733211549149,0.00209193,95409.0,95403.0,0.21824]
[1733211549448,0.00209193,95409.0,95403.0,0.16584]
[1733211549653,0.00209193,95409.0,95407.0,0.052398]
[1733211550055,0.00209193,95409.0,95408.0,0.03]
[1733211550952,0.00109193,95409.0,95408.0,0.03]
[1733211551156,0.00209193,95409.0,95408.0,0.03]
[1733211552149,0.00209193,95409.0,95407.0,0.052398]
[1733211554954,0.00109193,95409.0,95407.0,0.052398]
[1733211555152,0.00209193,95409.0,95407.0,0.052398]
[1733211555349,0.00209193,95409.0,95404.0,0.38086143]
[1733211555350,0.00209193,95409.0,95404.0,0.3608]
[1733211555554,0.3608,95405.0,95394.0,0.3608]
[1733211555850,0.3608,95405.0,95403.0,0.052401]
[1733211556650,0.00209193,95409.0,95408.0,0.052398]
[1733211557055,0.00209193,95409.0,95408.0,0.226678]
[1733211557561,0.00109193,95409.0,95408.0,0.226678]
[1733211558053,9.3e-07,95409.0,95408.0,0.226678]
[1733211558266,9.3e-07,95409.0,95408.0,0.24651126]
[1733211558649,0.00100093,95409.0,95408.0,0.24651126]
[1733211559045,8.359e-05,95409.0,95408.0,0.24651126]
[1733211559249,0.00208266,95409.0,95408.0,0.24651126]
[1733211559457,0.00208266,95409.0,95408.0,0.07223126]
[1733211559661,0.00208266,95409.0,95408.0,0.052398]
[1733211560654,0.00108266,95409.0,95408.0,0.052398]
[1733211560857,0.00208266,95409.0,95408.0,0.052398]
[1733211563259,0.00208266,95409.0,95408.0,0.226638]
[1733211567861,0.00208266,95409.0,95408.0,0.587438]
[1733211568264,0.00108266,95409.0,95408.0,0.587438]
[1733211568459,0.00208266,95409.0,95408.0,0.587438]
[1733211569864,0.00108266,95409.0,95408.0,0.587438]
[1733211570166,0.00208266,95409.0,95408.0,0.587438]
[1733211572453,6.6e-07,95409.0,95408.0,0.587438]
[1733211573568,0.00109217,95409.0,95408.0,0.587438]
[1733211573759,0.00109217,95409.0,95408.0,0.413198]
[1733211573960,0.00109217,95409.0,95408.0,0.587438]
[1733211574157,0.00109151,95409.0,95408.0,0.587438]
[1733211574359,0.00209151,95409.0,95408.0,0.587438]
[1733211576059,5.1e-07,95409.0,95408.0,0.587438]
[1733211577366,5.1e-07,95422.0,95421.0,0.052391]
[1733211577563,5.1e-07,95422.0,95421.0,0.853671]
[1733211578170,5.1e-07,95422.0,95421.0,1.027911]
[1733211578565,0.00100051,95422.0,95421.0,1.027911]
[1733211579567,5.1e-07,95422.0,95421.0,1.027911]
[1733211579768,5.1e-07,95422.0,95421.0,1.030911]
[1733211579957,0.3608,95434.0,95433.0,0.052384]
[1733211580266,0.17424,95465.0,95447.0,0.052377]
[1733211580267,0.0641,95448.0,95447.0,0.052377]
[1733211580469,0.0641,95448.0,95447.0,0.226617]
[1733211580767,0.0325,95459.0,95451.0,0.052375]
[1733211580959,0.0331,95458.0,95451.0,0.052375]
[1733211581965,0.3638,95452.0,95451.0,0.052375]
[1733211583172,0.3678,95452.0,95451.0,0.226615]
[1733211585676,0.3678,95452.0,95451.0,0.220935]
[1733211586568,0.3678,95452.0,95436.0,0.052382]
[1733211586569,0.3678,95452.0,95425.0,0.3608]
[1733211586766,0.3678,95452.0,95420.0,0.56620877]
[1733211586767,0.3608,95444.0,95433.0,0.3608]
[1733211586964,0.12580877,95443.0,95426.0,0.16852]
[1733211587163,0.12580877,95443.0,95425.0,0.38032358]
[1733211587164,0.413178,95444.0,95431.0,0.052385]
[1733211587368,0.0309,95442.0,95431.0,0.052385]
[1733211587671,0.0309,95442.0,95435.0,0.003]
[1733211587878,0.0309,95442.0,95435.0,0.004]
[1733211588579,0.0309,95442.0,95435.0,0.003]
[1733211589073,0.0309,95442.0,95432.0,0.052384]
[1733211589574,0.0309,95442.0,95434.0,0.052384]
[1733211589879,0.0309,95442.0,95441.0,0.05238]
[1733211591878,0.0319,95442.0,95441.0,0.05238]
[1733211592577,0.0319,95442.0,95441.0,0.05338]
[1733211594871,0.0319,95442.0,95441.0,0.001]
[1733211596577,0.0319,95442.0,95441.0,0.05338]
[1733211597670,0.0319,95442.0,95441.0,0.001]
[1733211598986,0.05161554,95442.0,95441.0,0.001]
[1733211600377,0.05161554,95442.0,95433.0,0.0026]
[1733211600378,0.052384,95434.0,95433.0,0.0026]
[1733211600583,0.3608,95434.0,95429.0,0.052386]
[1733211600891,0.052385,95432.0,95431.0,0.052385]
[1733211601278,0.052385,95432.0,95425.0,0.0026]
[1733211601482,0.3608,95426.0,95425.0,0.052388]
[1733211602982,0.3618,95426.0,95425.0,0.061388]
[1733211603777,0.3618,95426.0,95420.0,0.44356]
[1733211603778,0.3618,95426.0,95420.0,0.00316]
[1733211603984,0.3618,95426.0,95400.0,1.1]
[1733211603985,0.052394,95416.0,95414.0,0.0026]
[1733211604183,0.052396,95412.0,95410.0,0.16856]
[1733211604384,0.3608,95411.0,95410.0,0.16856]
[1733211605182,0.052401,95403.0,95402.0,0.0026]
[1733211605386,0.052401,95403.0,95400.0,1.10056]
[1733211605387,0.052402,95402.0,95400.0,1.10056]
[1733211605581,0.052402,95402.0,95400.0,1.1]
[1733211606485,0.052402,95402.0,95400.0,1.095]
[1733211606882,0.0328,95401.0,95400.0,1.095]
[1733211607082,0.0642,95401.0,95400.0,1.095]
[1733211607885,0.0642,95401.0,95400.0,1.1]
[1733211608286,0.2,95401.0,95400.0,1.1]
[1733211608482,0.201,95401.0,95400.0,1.1]
[1733211608791,0.35879105,95401.0,95400.0,1.099]
[1733211609183,0.19019105,95401.0,95400.0,1.099]
[1733211610278,0.001,95401.0,95400.0,1.099]
[1733211610483,0.001,95401.0,95400.0,1.4598]
[1733211610782,0.001,95401.0,95400.0,1.2676]
[1733211613193,0.3608,95411.0,95410.0,0.052397]
[1733211614489,0.3608,95411.0,95410.0,0.056397]
[1733211615688,0.3618,95411.0,95410.0,0.056397]
[1733211616596,0.3628,95411.0,95410.0,0.059397]
[1733211616892,0.3628,95411.0,95410.0,0.007]
[1733211617287,0.3628,95411.0,95410.0,0.009]
[1733211617896,0.3618,95411.0,95410.0,0.005]
[1733211618092,0.3628,95411.0,95410.0,0.17152]
[1733211619795,0.3628,95411.0,95410.0,0.223917]
[1733211620194,0.3628,95411.0,95410.0,0.16752]
[1733211620195,0.3618,95411.0,95410.0,0.16752]
[1733211620400,0.3618,95411.0,95410.0,0.17052]
[1733211620401,0.3628,95411.0,95410.0,0.17052]
[1733211620705,0.3618,95411.0,95410.0,0.16552]
[1733211620905,0.3628,95411.0,95410.0,0.17052]
[1733211621501,0.3608,95411.0,95410.0,0.16252]
[1733211621801,0.3628,95411.0,95410.0,0.17052]
[1733211622190,0.3628,95411.0,95410.0,0.008]
[1733211622391,0.3628,95411.0,95410.0,0.17052]
[1733211622999,0.3628,95411.0,95410.0,0.16552]
[1733211623302,0.3628,95411.0,95410.0,0.17052]
[1733211623793,0.3618,95411.0,95410.0,0.16552]
[1733211623995,0.3628,95411.0,95410.0,0.008]
[1733211624204,0.3628,95411.0,95410.0,0.005]
[1733211624396,0.3955,95411.0,95410.0,0.008]
[1733211624588,0.3945,95411.0,95410.0,0.003]
[1733211624908,0.3945,95411.0,95410.0,0.005]
[1733211625093,0.3955,95411.0,95410.0,0.008]
[1733211625288,0.3628,95411.0,95410.0,0.008]
[1733211626691,0.3618,95411.0,95410.0,0.003]
[1733211626887,0.3628,95411.0,95410.0,0.008]
[1733211627492,0.3618,95411.0,95410.0,0.003]
[1733211627701,0.3618,95411.0,95410.0,0.008]
[1733211627702,0.3628,95411.0,95410.0,0.008]
[1733211636610,0.3937,95411.0,95410.0,0.008]
[1733211637908,0.41405271,95411.0,95410.0,0.008]
[1733211638100,0.3628,95411.0,95410.0,0.008]
[1733211642414,0.3628,95411.0,95410.0,0.16628]
[1733211643420,0.002,95411.0,95410.0,0.16628]
[1733211643602,0.002,95411.0,95410.0,0.22898]
[1733211648804,0.3608,95414.0,95410.0,0.22898]
[1733211649006,0.3608,95414.0,95413.0,0.052395]
[1733211650420,0.3618,95414.0,95413.0,0.061395]
[1733211650616,0.3628,95414.0,95413.0,0.061395]
[1733211651309,0.3618,95414.0,95413.0,0.065395]
[1733211655530,0.052382,95438.0,95413.0,0.3738]
[1733211655828,0.3608,95439.0,95413.0,0.3738]
[1733211655829,0.3608,95439.0,95437.0,0.052382]
[1733211656009,0.3608,95439.0,95438.0,0.22188]
[1733211656621,0.3608,95459.0,95448.0,0.052376]
[1733211656813,0.3608,95459.0,95448.0,0.210656]
[1733211657414,0.41317,95459.0,95448.0,0.052376]
[1733211657622,0.36184001,95459.0,95448.0,0.210656]
[1733211657923,0.3608,95459.0,95448.0,0.23039137]
[1733211659332,0.3658,95449.0,95448.0,0.17797537]
[1733211660327,0.3688,95449.0,95448.0,0.15824]
[1733211662122,0.3688,95449.0,95447.0,0.07192555]
[1733211662123,0.3688,95449.0,95447.0,0.01954855]
[1733211662322,0.3688,95449.0,95448.0,0.15824]
[1733211663029,0.3688,95449.0,95442.0,0.15824]
[1733211663331,0.413176,95449.0,95447.0,0.009]